fUSD/lending_fUSD_20241019
["ID","MTS","AMOUNT","RATE_DAILY","PERIOD"]
[340504862,1729375839302,-500.0,0.000208,2]
[340504863,1729375839312,-500.0,0.000208,2]
[340504864,1729375839321,-500.0,0.000208,2]
[340504865,1729375839330,-500.0,0.000208,2]
[340504866,1729375839339,-500.0,0.000208,2]
[340504867,1729375839348,-500.0,0.000208,2]
[340504868,1729375839357,-151.0,0.000208,2]
[340504869,1729375839366,-500.0,0.000208,2]
[340504870,1729375839375,-500.0,0.000208,2]
[340504871,1729375839384,-500.0,0.000208,2]
[340504872,1729375839393,-500.0,0.000208,2]
[340504873,1729375839403,-500.0,0.000208,2]
[340504874,1729375839412,-500.0,0.000208,2]
[340504875,1729375839421,-500.0,0.000208,2]
[340504876,1729375839430,-500.0,0.000208,2]
[340504877,1729375839440,-500.0,0.000208,2]
[340504878,1729375839449,-500.0,0.000208,2]
[340504879,1729375839459,-500.0,0.000208,2]
[340504880,1729375839468,-500.0,0.000208,2]
[340504881,1729375839476,-500.0,0.000208,2]
[340504882,1729375839486,-500.0,0.000208,2]
[340504883,1729375839495,-500.0,0.000208,2]
[340504884,1729375839504,-500.0,0.000208,2]
[340504885,1729375839513,-500.0,0.000208,2]
[340504886,1729375839523,-500.0,0.000208,2]
[340504887,1729375839532,-500.0,0.000208,2]
[340504888,1729375839541,-500.0,0.000208,2]
[340504889,1729375839551,-500.0,0.000208,2]
[340504890,1729375839560,-500.0,0.000208,2]
[340504891,1729375839570,-151.0,0.000208,2]
[340504892,1729375839579,-500.0,0.000208,2]
[340504893,1729375839588,-500.0,0.000208,2]
[340504894,1729375839598,-500.0,0.000208,2]
[340504895,1729375839607,-500.0,0.000208,2]
[340504896,1729375839616,-500.0,0.000208,2]
[340504897,1729375839625,-500.0,0.000208,2]
[340504898,1729375839634,-500.0,0.000208,2]
[340504899,1729375839643,-500.0,0.000208,2]
[340504900,1729375839653,-500.0,0.000208,2]
[340504901,1729375839662,-500.0,0.000208,2]
[340504902,1729375839671,-500.0,0.000208,2]
[340504903,1729375839680,-500.0,0.000208,2]
[340504904,1729375839690,-500.0,0.000208,2]
[340504905,1729375839699,-500.0,0.000208,2]
[340504906,1729375839708,-500.0,0.000208,2]
[340504907,1729375839718,-500.0,0.000208,2]
[340504908,1729375839727,-500.0,0.000208,2]
[340504909,1729375839736,-500.0,0.000208,2]
[340504910,1729375839746,-500.0,0.000208,2]
[340504911,1729375839755,-500.0,0.000208,2]
[340504912,1729375839764,-500.0,0.000208,2]
[340504913,1729375839774,-500.0,0.000208,2]
[340504914,1729375839783,-500.0,0.000208,2]
[340504915,1729375839792,-500.0,0.000208,2]
[340504916,1729375839802,-500.0,0.000208,2]
[340504917,1729375839811,-500.0,0.000208,2]
[340504918,1729375839819,-500.0,0.000208,2]
[340504919,1729375839828,-500.0,0.000208,2]
[340504920,1729375839837,-500.0,0.000208,2]
[340504921,1729375839846,-500.0,0.000208,2]
[340504922,1729375839855,-500.0,0.000208,2]
[340504923,1729375839864,-500.0,0.000208,2]
[340504925,1729375839873,-500.0,0.000208,2]
[340504926,1729375839882,-500.0,0.000208,2]
[340504928,1729375839892,-500.0,0.000208,2]
[340504930,1729375839900,-500.0,0.000208,2]
[340504932,1729375839909,-500.0,0.000208,2]
[340504934,1729375839918,-500.0,0.000208,2]
[340504936,1729375839927,-477.845467,0.000208,2]
[340504937,1729375839939,-500.0,0.000208,2]
[340504939,1729375839948,-500.0,0.000208,2]
[340504941,1729375839957,-500.0,0.000208,2]
[340504943,1729375839966,-500.0,0.000208,2]
[340504945,1729375839975,-500.0,0.000208,2]
[340504947,1729375839984,-500.0,0.000208,2]
[340504949,1729375839993,-477.845467,0.000208,2]
[340504951,1729375840003,-500.0,0.000208,2]
[340504953,1729375840012,-500.0,0.000208,2]
[340504954,1729375840021,-500.0,0.000208,2]
[340504956,1729375840030,-500.0,0.000208,2]
[340504958,1729375840039,-500.0,0.000208,2]
[340504973,1729375840171,-500.0,0.000208,2]
[340504975,1729375840182,-500.0,0.000208,2]
[340504976,1729375840193,-500.0,0.000208,2]
[340504977,1729375840202,-500.0,0.000208,2]
[340504978,1729375840211,-500.0,0.000208,2]
[340504979,1729375840219,-500.0,0.000208,2]
[340504980,1729375840229,-500.0,0.000208,2]
[340504981,1729375840239,-500.0,0.000208,2]
[340504982,1729375840248,-500.0,0.000208,2]
[340504983,1729375840256,-500.0,0.000208,2]
[340504984,1729375840266,-500.0,0.000208,2]
[340504985,1729375840275,-500.0,0.000208,2]
[340504986,1729375840283,-500.0,0.000208,2]
[340504987,1729375840292,-500.0,0.000208,2]
[340504988,1729375840301,-500.0,0.000208,2]
[340504989,1729375840310,-500.0,0.000208,2]
[340504990,1729375840319,-500.0,0.000208,2]
[340504991,1729375840329,-500.0,0.000208,2]
[340504992,1729375840339,-500.0,0.000208,2]
[340504993,1729375840350,-500.0,0.000208,2]
[340504994,1729375840359,-500.0,0.000208,2]
[340504995,1729375840369,-500.0,0.000208,2]
[340504996,1729375840378,-500.0,0.000208,2]
[340504997,1729375840389,-500.0,0.000208,2]
[340504998,1729375840399,-500.0,0.000208,2]
[340504999,1729375840410,-500.0,0.000208,2]
[340505000,1729375840421,-151.0,0.000208,2]
[340505001,1729375840431,-280305.93695134,0.00021,4]
[340505002,1729375840446,-20206.73716247,0.00021,4]
[340505003,1729375840455,-20206.29882864,0.00021,4]
[340505004,1729375840464,-20206.20330528,0.00021,4]
[340505005,1729375840473,-63949.88640324,0.00021,4]
[340505006,1729375840482,-151.0,0.00021,2]
[340505007,1729375840491,-240.517796,0.00021,2]
[340505008,1729375840500,-151.0,0.00021,2]
[340505009,1729375840509,-151.0,0.00021,2]
[340505010,1729375840519,-287.66464,0.00021,2]
[340505011,1729375840528,-151.0,0.00021,2]
[340505012,1729375840537,-477.845467,0.00021,2]
[340505013,1729375840546,-477.845467,0.00021,2]
[340505014,1729375840555,-151.0,0.00021,2]
[340505015,1729375840564,-151.0,0.00021,2]
[340505016,1729375840573,-151.0,0.00021,2]
[340505017,1729375840582,-151.0,0.00021,2]
[340505018,1729375840591,-513.966527,0.00021,2]
[340505019,1729375840600,-513.966527,0.00021,2]
[340505020,1729375840610,-151.0,0.00021,2]
[340505021,1729375840619,-151.0,0.00021,2]
[340505022,1729375840628,-277.846764,0.00021,2]
[340505023,1729375840637,-151.0,0.00021,2]
[340505024,1729375840646,-151.0,0.00021,2]
[340505025,1729375840655,-1335.59,0.000212,2]
[340505026,1729375840664,-163.1460864,0.000214,2]
[340505027,1729375840673,-11059.23894874,0.00021767,2]
[340505028,1729375840683,-502.01,0.00021784,2]
[340505029,1729375840692,-375.0,0.00021917,2]
[340505030,1729375840701,-2500.0,0.00021917,2]
[340505031,1729375840712,-2500.0,0.00021917,2]
[340505032,1729375840722,-1441.21551186,0.00021917,2]
[340505033,1729375840732,-480.49,0.00021918,2]
[340505034,1729375840741,-400.0,0.00022,2]
[340505035,1729375840750,-550.0,0.00022,2]
[340505036,1729375840759,-211.0,0.0002288,2]
[340505037,1729375840769,-626.06502491,0.00022886,2]
[340505038,1729375840778,-1363.0,0.000233,2]
[340505039,1729375840787,-182.82493661,0.000233,2]
[340505040,1729375840796,-11059.23894874,0.00023333,2]
[340505041,1729375840805,-400.0,0.00023343,2]
[340505042,1729375840815,-400.0,0.00023343,2]
[340505043,1729375840824,-1335.59,0.000237,14]
[340505044,1729375840833,-400.0,0.00023879,2]
[340505045,1729375840842,-505.02008851,0.00023879,2]
[340505046,1729375840851,-423203.51072319,0.0002388,2]
[340505047,1729375840860,-151.0,0.0002388,7]
[340505048,1729375840869,-417.342025,0.0002388,7]
[340505049,1729375840878,-417.342025,0.0002388,7]
[340505050,1729375840887,-151.0,0.0002388,7]
[340505051,1729375840896,-151.0,0.0002388,7]
[340505052,1729375840905,-477.845467,0.0002388,7]
[340505053,1729375840914,-477.845467,0.0002388,7]
[340505054,1729375840923,-513.966527,0.0002388,7]
[340505055,1729375840932,-513.966527,0.0002388,7]
[340505056,1729375840942,-165.2112,0.0002388,7]
[340505057,1729375840951,-151.0,0.0002388,7]
[340505058,1729375840960,-151.0,0.0002388,7]
[340505059,1729375840969,-253.76,0.000239,2]
[340505060,1729375840978,-600.0,0.00024,2]
[340505061,1729375840987,-502.01,0.00024045,2]
[340505062,1729375840996,-152.47,0.0002411,2]
[340505063,1729375841005,-211.0,0.0002436,2]
[340505064,1729375841014,-216.69138465,0.000245,2]
[340505065,1729375841023,-305.74,0.000246,2]
[340505066,1729375841032,-1011.0,0.000246,2]
[340505067,1729375841041,-609.15884492,0.00024625,2]
[340505068,1729375841050,-750.0,0.00024657,2]
[340505069,1729375841059,-500.0,0.00024658,7]
[340505070,1729375841068,-155.96,0.00024877,30]
[340505071,1729375841077,-400.0,0.00024899,2]
[340505072,1729375841086,-421.63453209,0.000249,2]
[340505073,1729375841095,-163.1460864,0.000249,2]
[340505074,1729375841103,-8500.0,0.000249,2]
[340505075,1729375841112,-35000.0,0.000249,2]
[340505076,1729375841121,-2261.29905231,0.000249,2]
[340505077,1729375841131,-7836.07616584,0.000249,2]
[340505078,1729375841143,-11059.23894874,0.000249,2]
[340505079,1729375841152,-158.33567086,0.000249,2]
[340505080,1729375841160,-626.06502491,0.000249,2]
[340505081,1729375841170,-1132.49831769,0.000249,2]
[340505082,1729375841180,-10886.1856942,0.000249,2]
[340505083,1729375841189,-400.0,0.0002493,2]
[340505084,1729375841198,-528.82364703,0.00024931,2]
[340505085,1729375841207,-519.29201149,0.00024931,2]
[340505086,1729375841217,-500.0,0.00024931,2]
[340505087,1729375841226,-500.0,0.00024931,2]
[340505088,1729375841236,-500.0,0.00024931,2]
[340505089,1729375841245,-500.0,0.00024931,2]
[340505090,1729375841254,-500.0,0.00024931,2]
[340505091,1729375841263,-500.0,0.00024931,2]
[340505092,1729375841272,-472.28028053,0.00024931,2]
[340505093,1729375841281,-1388.03,0.00024931,2]
[340505094,1729375841290,-1388.03,0.00024931,2]
[340505095,1729375841299,-1388.03,0.00024931,2]
[340505096,1729375841308,-1388.03,0.00024931,2]
[340505097,1729375841317,-1388.03,0.00024931,2]
[340505098,1729375841326,-1388.03,0.00024931,2]
[340505099,1729375841335,-1388.03,0.00024931,2]
[340505100,1729375841343,-1388.03,0.00024931,2]
[340505101,1729375841352,-1388.03,0.00024931,2]
[340505102,1729375841361,-1388.03,0.00024931,2]
[340505103,1729375841370,-1388.03,0.00024931,2]
[340505104,1729375841378,-1388.03,0.00024931,2]
[340505105,1729375841387,-1388.03,0.00024931,2]
[340505106,1729375841396,-1388.03,0.00024931,2]
[340505107,1729375841405,-1388.03,0.00024931,2]
[340505108,1729375841415,-1388.03,0.00024931,2]
[340505109,1729375841424,-1388.03,0.00024931,2]
[340505110,1729375841435,-1388.03,0.00024931,2]
[340505111,1729375841444,-1388.03,0.00024931,2]
[340505112,1729375841455,-1388.03,0.00024931,2]
[340505113,1729375841465,-1388.03,0.00024931,2]
[340505114,1729375841474,-1388.03,0.00024931,2]
[340505115,1729375841483,-1388.03,0.00024931,2]
[340505116,1729375841494,-1388.11884646,0.00024931,2]
[340505117,1729375841504,-500.0,0.00024931,2]
[340505118,1729375841516,-500.0,0.00024931,2]
[340505119,1729375841526,-307.39858461,0.00024931,2]
[340505120,1729375841537,-500.0,0.00024931,2]
[340505121,1729375841546,-500.0,0.00024931,2]
[340505122,1729375841555,-500.0,0.00024931,2]
[340505123,1729375841564,-175.78883182,0.00024931,2]
[340505124,1729375841574,-500.0,0.00024931,2]
[340505125,1729375841583,-500.0,0.00024931,2]
[340505126,1729375841593,-502.66438831,0.00024931,2]
[340505127,1729375841602,-600.0,0.0002498,9]
[340505128,1729375841611,-600.0,0.0002498,9]
[340505129,1729375841620,-600.0,0.0002498,9]
[340505130,1729375841629,-600.0,0.0002498,9]
[340505131,1729375841638,-600.0,0.0002498,9]
[340505132,1729375841647,-600.0,0.0002498,9]
[340505133,1729375841656,-600.0,0.0002498,9]
[340505134,1729375841665,-600.0,0.0002498,9]
[340505135,1729375841674,-600.0,0.0002498,9]
[340505136,1729375841683,-600.0,0.0002498,9]
[340505137,1729375841692,-2500.0,0.00024998,5]
[340505138,1729375841702,-2290.74822508,0.00024999,2]
[340505139,1729375841711,-15277.92466881,0.00025,3]
[340505140,1729375841727,-34722.07533119,0.00025,3]
[340505141,1729375841737,-50000.0,0.00025,4]
[340505142,1729375841746,-50000.0,0.00025,5]
[340505143,1729375841754,-50000.0,0.00025,6]
[340505144,1729375841763,-610393.26928523,0.00025,2]
[340505145,1729375841774,-1850.0,0.00025,2]
[340505146,1729375841785,-308.42346545,0.00025,2]
[340505147,1729375841796,-348.23005832,0.00025,2]
[340505148,1729375841807,-879.14563992,0.00025,2]
[340505149,1729375841817,-432.59142673,0.00025,2]
[340505150,1729375841828,-749.1157921,0.00025,2]
[340505151,1729375841839,-597.24,0.00025,2]
[340505152,1729375841849,-516.12578492,0.00025,2]
[340505153,1729375841860,-765.41975306,0.00025,2]
[340505154,1729375841871,-1340.01178555,0.00025,2]
[340505155,1729375841881,-5740.77834692,0.00025,2]
[340505156,1729375841891,-1524.03827589,0.00025,2]
[340505157,1729375841902,-28766.3029231,0.00025,2]
[340505158,1729375841912,-6756.10214935,0.00025,2]
[340505159,1729375841923,-2397.52493888,0.00025,2]
[340505160,1729375841934,-517.48,0.00025,2]
[340505161,1729375841945,-452.64,0.00025,2]
[340505162,1729375841956,-1886.88,0.00025,2]
[340505163,1729375841966,-2056.46944238,0.00025,2]
[340505164,1729375841977,-941.43031319,0.00025,2]
[340505165,1729375841987,-1736.18631609,0.00025,2]
[340505166,1729375842000,-22590.85096767,0.00025,2]
[340505167,1729375842011,-2757.58727979,0.00025,2]
[340505168,1729375842022,-900.29891667,0.00025,2]
[340505169,1729375842033,-3755.47355016,0.00025,2]
[340505170,1729375842043,-4936.4916975,0.00025,2]
[340505171,1729375842058,-880.12,0.00025,2]
[340505172,1729375842165,-561.0,0.00011,2]
[340505173,1729375842174,-281116.55561751,0.00025,2]
[340505174,1729375842186,-1370.37733886,0.00025,2]
[340505175,1729375842197,-681.43362743,0.00025,2]
[340505176,1729375842208,-255.42348,0.00025,2]
[340505177,1729375842219,-11081.9877812,0.00025,2]
[340505178,1729375842230,-542.13631063,0.00025,2]
[340505179,1729375842240,-1048.582763,0.00025,2]
[340505180,1729375842251,-846.52210567,0.00025,2]
[340505181,1729375842262,-1745.18523268,0.00025,2]
[340505182,1729375842273,-1794.2837615,0.00025,2]
[340505183,1729375842283,-2029.93506322,0.00025,2]
[340505184,1729375842294,-104957.02681834,0.00025,2]
[340505185,1729375842305,-7372.9692368,0.00025,2]
[340505186,1729375842316,-1986.15335335,0.00025,2]
[340505187,1729375842326,-530.86535505,0.00025,2]
[340505188,1729375842338,-9876.60459717,0.00025,2]
[340505189,1729375842348,-511.70455756,0.00025,2]
[340505190,1729375842359,-558.89350208,0.00025,2]
[340505191,1729375842370,-2362628.4013677,0.00025,2]
[340505192,1729375842381,-326802.0336205,0.00025,2]
[340505193,1729375842391,-324484.28901508,0.00025,2]
[340505194,1729375842402,-15492.36436918,0.00025,2]
[340505195,1729375842413,-753.99558445,0.00025,2]
[340505196,1729375842424,-1930.84972223,0.00025,2]
[340505197,1729375842668,-3632.45059965,0.00025,2]
[340505198,1729375842679,-717.9,0.00025,2]
[340505199,1729375842725,-715.43335499,0.00025,2]
[340505200,1729375842737,-579.70005283,0.00025,2]
[340505201,1729375842785,-63286.99999999,0.00025,2]
[340505202,1729375842796,-1700.6,0.00025,2]
[340505203,1729375842807,-4330.59626476,0.00025,2]
[340505204,1729375842842,-360.11329688,0.00025,2]
[340505205,1729375842853,-827.19049739,0.00025,2]
[340505206,1729375842864,-547.46957672,0.00025,2]
[340505207,1729375842901,-5656.37597595,0.00025,2]
[340505208,1729375842913,-13190.16168377,0.00025,2]
[340505209,1729375842925,-5555.46799405,0.00025,2]
[340505210,1729375842936,-427.149998,0.00025,2]
[340505211,1729375842959,-483.05719049,0.00025,2]
[340505213,1729375845634,-739.3446324,0.00010954,2]
[340505216,1729375999612,250.0,0.0001,2]
[340505217,1729376640461,501.0,0.0001,2]
[340505219,1729376846134,-858.24809465,0.000105,2]
[340505220,1729376846157,-0.00349488,0.00010581,2]
[340505221,1729376854132,-149.99650512,0.00010581,2]
[340505222,1729376854157,-232.0347,0.000106,2]
[340505223,1729376854181,-1260.4249,0.000106,2]
[340505224,1729376854205,-306.79539514,0.000106,2]
[340505232,1729377031756,-150.0,0.00010597,2]
[340505233,1729377031767,-359.75460486,0.000106,2]
[340505234,1729377031776,-159.8495717,0.00010673,2]
[340505235,1729377031786,-201.11251186,0.00010673,2]
[340505236,1729377031795,-150.0,0.00010699,2]
[340505237,1729377031804,-72.13413992,0.00010699,2]
[340505238,1729377031839,-227.86586008,0.00010699,2]
[340505239,1729377031849,-680.7723,0.000107,2]
[340505240,1729377031858,-1659.11474921,0.000107,2]
[340505241,1729377031870,-4700.0,0.000107,2]
[340505242,1729377031881,-2686.65209013,0.000107,2]
[340505243,1729377031892,-9202.87735905,0.000107,2]
[340505244,1729377031924,-4021.02432969,0.000107,2]
[340505245,1729377031936,-2437.99633404,0.000107,2]
[340505246,1729377031947,-36230.62743788,0.000107,2]
[340505247,1729377031957,-26135.6358,0.000107,2]
[340505248,1729377031967,-1000.0,0.000107,2]
[340505249,1729377031976,-1993.3935,0.000107,2]
[340505250,1729377031986,-2500.0,0.000107,2]
[340505251,1729377031995,-1168.99340891,0.00010789,2]
[340505252,1729377032004,-61897.61091264,0.000108,2]
[340505253,1729377032015,-549.00973517,0.000108,2]
[340505254,1729377032026,-3603.53690901,0.000108,2]
[340505255,1729377032038,-4181.26213134,0.000108,2]
[340505256,1729377032049,-7468.58125177,0.000108,2]
[340505257,1729377032060,-428.45648914,0.000108,2]
[340505258,1729377032072,-711.01118688,0.000108,2]
[340505259,1729377032083,-1827.91072361,0.000108,2]
[340505260,1729377032094,-978.62989679,0.000108,2]
[340505261,1729377032107,-686.70513767,0.000108,2]
[340505262,1729377032118,-1132.38722525,0.000108,2]
[340505263,1729377032130,-69105.87262194,0.000108,2]
[340505264,1729377032141,-2795.03393723,0.000108,2]
[340505265,1729377032153,-306.16254927,0.000108,2]
[340505266,1729377032165,-89327.82929229,0.000108,2]
[340505267,1729377032174,-37641.7814,0.000108,2]
[340505268,1729377032184,-41235.358,0.000108,2]
[340505269,1729377032193,-469.5487687,0.000109,2]
[340505270,1729377032204,-469.54876869,0.000109,2]
[340505271,1729377032214,-469.54876869,0.000109,2]
[340505272,1729377032223,-1645.80012632,0.000109,2]
[340505273,1729377032233,-469.54876869,0.00010957,2]
[340505274,1729377032243,-160.68,0.00010959,2]
[340505275,1729377032252,-249.12,0.00010959,2]
[340505276,1729377032262,-207.6,0.00010959,2]
[340505277,1729377032271,-173.0,0.00010959,2]
[340505278,1729377032280,-865.03,0.00010959,2]
[340505279,1729377032289,-500.0,0.00010999,2]
[340505280,1729377032299,-500.0,0.00010999,2]
[340505281,1729377032308,-421.75455721,0.00010999,2]
[340505282,1729377032317,-499.99,0.00010999,2]
[340505283,1729377032327,-408975.00211734,0.00011,2]
[340505284,1729377032338,-6109.13788547,0.00011,2]
[340505285,1729377032350,-2497.50370162,0.00011,2]
[340505286,1729377032361,-536.83568415,0.00011,2]
[340505313,1729377038302,-342.06210541,0.00011,2]
[340505314,1729377038313,-1122.35208928,0.00011,2]
[340505315,1729377038324,-5340.98495427,0.00011,2]
[340505316,1729377038335,-338.26352533,0.00011,2]
[340505317,1729377038346,-6515.0,0.00011,2]
[340505318,1729377038379,-462.45588772,0.00011,2]
[340505319,1729377038390,-569.50374421,0.00011,2]
[340505320,1729377038402,-7958.54185658,0.00011,2]
[340505321,1729377038414,-400.0,0.00011,2]
[340505322,1729377038425,-6470.20833297,0.00011,2]
[340505323,1729377038486,-2644.17619719,0.00011,2]
[340505324,1729377038497,-7834.18124973,0.00011,2]
[340505325,1729377038509,-6016.27157419,0.00011,2]
[340505326,1729377038519,-318.4011789,0.00011,2]
[340505327,1729377039055,-821194.67071109,0.00011,2]
[340505332,1729377039743,-391.37,0.00011,2]
[340505334,1729377039918,-968.05787515,0.00011,2]
[340505335,1729377039929,-1341.45000002,0.00011,2]
[340505336,1729377039940,-262.894995,0.00011,2]
[340505337,1729377039951,-211015.10152308,0.00011,2]
[340505338,1729377040000,-255.4974,0.00011,2]
[340505339,1729377040012,-302.2027,0.00011,2]
[340505344,1729377042789,-1109.25964547,0.00011,2]
[340505345,1729377042941,-382.92113158,0.00011,2]
[340505346,1729377043025,-642.70249532,0.00011,2]
[340505347,1729377043037,-552318.38671664,0.00011,2]
[340505348,1729377043050,-604.7629599,0.00011,2]
[340505351,1729377046160,-44563.0207,0.000107,2]
[340505352,1729377046169,-15396.75761574,0.00011,2]
[340505353,1729377817285,250.0,0.0001,2]
[340505355,1729378030097,-232.8564,0.0001079,2]
[340505356,1729378030116,-30.71802429,0.0001088,2]
[340505357,1729378041096,-119.28197571,0.0001088,2]
[340505358,1729378041122,-215.25336976,0.00010889,2]
[340505359,1729378051142,-84.74663024,0.00010889,2]
[340505360,1729378051164,-489.51024723,0.0001089,2]
[340505361,1729378229162,506.61,0.00010373,2]
[340505362,1729378231930,-150.0,0.00010877,2]
[340505363,1729378231939,-1377.15028675,0.0001089,2]
[340505364,1729378231956,-1200.0,0.0001089,2]
[340505365,1729378232061,-4195.82695552,0.0001089,2]
[340505366,1729378232087,-12830.25542004,0.0001089,2]
[340505367,1729378232097,-150.0,0.00010899,2]
[340505368,1729378232106,-211.78721124,0.000109,2]
[340505369,1729378232118,-8625.63718876,0.000109,2]
[340505370,1729378232127,-1644.3579,0.000109,2]
[340505371,1729378232136,-3537.61287495,0.000109,2]
[340505378,1729378238741,-1747.97382505,0.000109,2]
[340505379,1729378238750,-1878.19507476,0.000109,2]
[340505380,1729378238760,-861.1849,0.000109,2]
[340505381,1729378238769,-267.18051842,0.000109,2]
[340505382,1729378238779,-150.0,0.00010932,2]
[340505383,1729378238788,-157.84,0.00010959,2]
[340505384,1729378238797,-153.01,0.00010959,2]
[340505385,1729378238806,-5701.41542883,0.00011,2]
[340505388,1729378239969,-1377.62653051,0.00011,2]
[340505389,1729378240077,-571402.40444697,0.00011,2]
[340505390,1729378240088,-889.12652402,0.00011,2]
[340505391,1729378240099,-795.87311397,0.00011,2]
[340505397,1729378240340,-655.78008369,0.00011,2]
[340505430,1729378243418,-174972.266772,0.00011,2]
[340505431,1729378243437,-3592.67573094,0.00011,2]
[340505432,1729378243448,-938.49056405,0.00011,2]
[340505433,1729378243459,-504.90680201,0.00011,2]
[340505434,1729378243470,-4429.68318827,0.00011,2]
[340505435,1729378243482,-2999.01342095,0.00011,2]
[340505436,1729378243493,-3608.49551145,0.00011,2]
[340505437,1729378243505,-2149.47125223,0.00011,2]
[340505438,1729378243570,-379.16720783,0.00011,2]
[340505439,1729378243582,-12722.77961447,0.00011,2]
[340505440,1729378243594,-402.615,0.00011,2]
[340505444,1729378245994,-341.57086374,0.00011,2]
[340505445,1729378246189,-812.67894804,0.00011,2]
[340505446,1729378246278,-1644.35788627,0.00011,2]
[340505454,1729378719846,526.9,9.378e-05,2]
[340505459,1729378906675,-1091.42706126,0.000108,2]
[340505460,1729378906697,-4170.8324,0.000108,2]
[340505461,1729378906718,-2500.0,0.000108,2]
[340505462,1729378906740,-500.0,0.00010873,2]
[340505463,1729378906763,-1435.31237576,0.00010899,2]
[340505464,1729378906785,-5802.42816298,0.000109,2]
[340505465,1729379240136,172.4,8.856e-05,2]
[340505466,1729379350954,522.98,9.027e-05,2]
[340505467,1729379403973,23900.0,0.00010307,2]
[340505468,1729379412482,301.28,0.00010342,2]
[340505469,1729379418110,1000.0,0.00010336,2]
[340505473,1729379432142,-1437.47936802,0.000107,2]
[340505474,1729379432151,-150.0,0.00010781,2]
[340505476,1729379432161,-186.2089,0.000108,2]
[340505477,1729379432177,-524.821,0.000108,2]
[340505478,1729379432186,-942.6212,0.000108,2]
[340505479,1729379432195,-1291.78113813,0.00010899,2]
[340505480,1729379432205,-5717.18839385,0.000109,2]
[340505481,1729379432260,-57194.68519811,0.000109,2]
[340505530,1729379439669,-25725.58094506,0.000109,2]
[340505531,1729379439684,-259.68677489,0.000109,2]
[340505540,1729379440330,-1592.32193426,0.000109,2]
[340505541,1729379440342,-1014.579249,0.000109,2]
[340505542,1729379440359,-16875.99,0.000109,2]
[340505557,1729379443348,-6852.0841889,0.000109,2]
[340505558,1729379443475,-218405.33785295,0.000109,2]
[340505559,1729379443484,-5170.8643,0.000109,2]
[340505560,1729379443493,-160.98897749,0.000109,2]
[340505561,1729379443502,-1091.42706126,0.000109,2]
[340505562,1729379443511,-178.12034562,0.000109,2]
[340505563,1729379443520,-610.72254974,0.000109,2]
[340505564,1729379443529,-190.73,0.00010957,2]
[340505565,1729379443538,-162.94,0.00010959,2]
[340505566,1729379443547,-250.0,0.00010959,2]
[340505567,1729379443556,-216.82,0.00010961,2]
[340505568,1729379443565,-505.06779306,0.00010973,2]
[340505569,1729379443575,-83228.52,0.00010973,2]
[340505570,1729379443584,-2320.35,0.00010973,2]
[340505571,1729379443593,-197.65969227,0.0001099,2]
[340505572,1729379443602,-291998.19450952,0.00011,2]
[340505573,1729379443614,-520.2443575,0.00011,2]
[340505585,1729379455613,-5560.1173,0.000108,2]